bitfinex/quotes_BTCUSD_20260126
["timestamp","ask_amount","ask_price","bid_price","bid_amount"]
[1769460069152,0.03,87871.0,87863.0,0.0233846]
[1769460069367,0.03,87871.0,87865.0,0.61259143]
[1769460070225,0.03,87870.0,87866.0,0.0233846]
[1769460070440,0.03,87870.0,87866.0,0.58920683]
[1769460070678,0.03,87870.0,87867.0,0.0233846]
[1769460071361,0.03,87869.0,87867.0,0.0233846]
[1769460072453,0.06827753,87877.0,87867.0,0.0233846]
[1769460072663,0.06827934,87875.0,87860.0,4.661e-05]
[1769460072838,0.01137993,87874.0,87860.0,4.661e-05]
[1769460073043,0.01138005,87873.0,87860.0,4.661e-05]
[1769460073346,0.03,87865.0,87860.0,4.661e-05]
[1769460074178,0.03,87864.0,87860.0,4.661e-05]
[1769460075262,0.03,87863.0,87860.0,4.661e-05]
[1769460076348,0.03,87862.0,87860.0,4.661e-05]
[1769460077428,0.03,87861.0,87860.0,4.661e-05]
[1769460079422,0.03,87866.0,87860.0,4.661e-05]
[1769460080649,0.03,87862.0,87850.0,0.02395555]
[1769460080851,0.03,87862.0,87850.0,0.02442179]
[1769460081062,0.041382,87858.0,87850.0,0.02442179]
[1769460081267,0.01138122,87864.0,87850.0,0.02442179]
[1769460081268,0.03,87856.0,87850.0,0.00046624]
[1769460081495,0.63224636,87868.0,87856.0,0.01]
[1769460081708,0.1132228,87867.0,87856.0,0.01]
[1769460081920,0.1132228,87866.0,87856.0,0.01]
[1769460082121,0.1132228,87865.0,87856.0,0.01]
[1769460082319,0.03,87863.0,87856.0,0.01]
[1769460083415,0.03,87862.0,87856.0,0.01]
[1769460084489,0.03,87867.0,87856.0,0.01]
[1769460084702,0.03,87865.0,87858.0,0.02395555]
[1769460084911,0.01137863,87884.0,87856.0,0.01]
[1769460084912,0.58672075,87887.0,87862.0,0.02395555]
[1769460085113,0.1132,87886.0,87870.0,0.38217334]
[1769460085426,0.1132,87885.0,87871.0,0.02395555]
[1769460085624,0.1132,87884.0,87871.0,0.02395555]
[1769460085833,0.58672075,87887.0,87871.0,0.02395555]
[1769460085834,0.04137902,87881.0,87871.0,0.02395555]
[1769460086048,0.03,87879.0,87871.0,0.02395555]
[1769460086668,0.01137902,87881.0,87871.0,0.02395555]
[1769460086669,0.03,87874.0,87871.0,0.02395555]
[1769460087662,0.03,87873.0,87871.0,0.02395555]
[1769460087876,1.39794226,87921.0,87873.0,0.01]
[1769460087877,0.001,87874.0,87873.0,0.01]
[1769460088080,0.0001487,87890.0,87874.0,0.57564805]
[1769460088419,0.02073461,87905.0,87873.0,0.03395555]
[1769460088420,0.01137591,87905.0,87881.0,0.57564805]
[1769460088624,0.11318347,87901.0,87881.0,0.57564805]
[1769460088860,0.11318347,87901.0,87880.0,0.38217334]
[1769460088861,0.14318347,87900.0,87883.0,0.57564805]
[1769460089026,0.03,87898.0,87883.0,0.57564805]
[1769460089639,0.03013989,87898.0,87884.0,0.02395555]
[1769460090411,0.03,87897.0,87884.0,0.02395555]
[1769460091450,0.03013989,87898.0,87885.0,0.02395555]
[1769460091850,0.03,87896.0,87885.0,0.02395555]
[1769460092986,0.03,87895.0,87885.0,0.02395555]
[1769460093391,0.03,87892.0,87879.0,0.02395555]
[1769460093819,0.38217334,87900.0,87879.0,0.02395555]
[1769460094009,0.05688673,87894.0,87879.0,0.02409544]
[1769460094169,0.01137734,87894.0,87879.0,0.02409544]
[1769460094376,0.03,87893.0,87879.0,0.59974349]
[1769460094754,0.03,87893.0,87880.0,0.02395555]
[1769460094957,0.03,87893.0,87880.0,0.5996036]
[1769460095440,0.03,87892.0,87880.0,0.5996036]
[1769460096037,0.03,87892.0,87881.0,0.02395555]
[1769460096444,0.06826258,87896.0,87881.0,0.02395555]
[1769460096445,0.03,87891.0,87881.0,0.02395555]
[1769460097451,0.03,87890.0,87881.0,0.02395555]
[1769460098489,0.03,87895.0,87881.0,0.02395555]
[1769460098924,0.03,87890.0,87881.0,0.02395555]
[1769460099626,0.03,87886.0,87879.0,0.00013989]
[1769460100634,0.03,87890.0,87879.0,0.00013989]
[1769460101181,0.01137824,87887.0,87879.0,0.00013989]
[1769460101433,0.03,87886.0,87879.0,0.00013989]
[1769460101663,0.03,87879.0,87864.0,0.17496]
[1769460101900,0.03,87879.0,87865.0,0.57564805]
[1769460102868,0.03,87880.0,87865.0,0.57564805]
[1769460104030,0.03,87877.0,87865.0,0.57564805]
[1769460105242,0.03,87876.0,87865.0,0.57564805]
[1769460105478,0.03,87876.0,87864.0,0.17496]
[1769460105479,0.03,87872.0,87864.0,0.17496]
[1769460106613,0.03,87874.0,87864.0,0.17496]
[1769460107724,0.03,87873.0,87864.0,0.17496]
[1769460107902,0.03,87873.0,87864.0,0.75060805]
[1769460108134,0.03,87873.0,87864.0,0.17496]
[1769460108328,0.03,87873.0,87865.0,0.57564805]
[1769460108693,0.03,87872.0,87865.0,0.57564805]
[1769460109313,0.03,87872.0,87864.0,0.17496]
[1769460109721,0.03,87871.0,87864.0,0.17496]
[1769460110746,0.03,87870.0,87864.0,0.17496]
[1769460111778,0.03,87869.0,87864.0,0.17496]
[1769460112794,0.03,87876.0,87864.0,0.17496]
[1769460114050,0.03,87875.0,87864.0,0.17496]
[1769460114260,0.03,87875.0,87864.0,0.19971954]
[1769460114674,0.03,87875.0,87866.0,0.53528997]
[1769460114882,0.03,87875.0,87867.0,0.02475954]
[1769460115282,0.08066686,87883.0,87867.0,0.02475954]
[1769460115283,0.03,87874.0,87867.0,0.02475954]
[1769460116266,0.03,87873.0,87867.0,0.02475954]
[1769460117027,0.02377257,87883.0,87867.0,0.02475954]
[1769460117209,0.03,87884.0,87868.0,0.02475954]
[1769460117412,0.03,87884.0,87868.0,0.53528997]
[1769460117618,0.03,87884.0,87869.0,0.02475954]
[1769460117797,0.04137863,87884.0,87869.0,0.02475954]
[1769460118023,0.03,87881.0,87869.0,0.02475954]
[1769460119034,0.03,87880.0,87869.0,0.02475954]
[1769460120086,0.03,87879.0,87870.0,0.53528997]
[1769460120412,0.03,87879.0,87864.0,0.17496]
[1769460120413,0.03,87879.0,87872.0,0.02475954]
[1769460121216,0.03,87882.0,87872.0,0.02475954]
[1769460122205,0.03,87881.0,87872.0,0.56004951]
[1769460122756,0.03,87881.0,87872.0,0.02475954]
[1769460123315,0.03,87882.0,87872.0,0.02475954]
[1769460123511,0.03,87880.0,87872.0,0.02475954]
[1769460124486,0.01137876,87883.0,87872.0,0.02475954]
[1769460124487,0.001,87882.0,87872.0,0.02475954]
[1769460124693,0.03,87880.0,87872.0,0.02475954]
[1769460125890,0.03,87879.0,87866.0,0.53528997]
[1769460126311,0.03,87879.0,87866.0,0.57745326]
[1769460126720,0.04137915,87880.0,87866.0,0.57745326]
[1769460127380,0.03,87878.0,87866.0,0.57745326]
[1769460127759,0.03,87878.0,87866.0,0.04216329]
[1769460127760,0.09827674,87878.0,87866.0,0.04216329]
[1769460127968,0.04137941,87878.0,87865.0,0.02475954]
[1769460128395,0.03,87876.0,87865.0,0.02475954]
[1769460128616,0.03,87873.0,87864.0,0.17496]
[1769460129761,0.03,87872.0,87865.0,0.53528997]
[1769460130489,0.02377257,87880.0,87865.0,0.53528997]
[1769460130490,0.03,87871.0,87865.0,0.53528997]
[1769460131590,0.03515172,87880.0,87865.0,0.53528997]
[1769460131591,0.03,87870.0,87865.0,0.53528997]
[1769460132630,0.03,87869.0,87865.0,0.56004951]
[1769460133532,0.03,87878.0,87865.0,0.56004951]
[1769460133734,0.03,87876.0,87865.0,0.56004951]
[1769460133930,0.03,87874.0,87865.0,0.56004951]
[1769460134576,0.03,87874.0,87864.0,0.17496]
[1769460134925,0.03,87873.0,87864.0,0.17496]
[1769460135862,0.03,87872.0,87864.0,0.17496]
[1769460137127,0.03,87871.0,87864.0,0.17496]
[1769460138133,0.03,87879.0,87864.0,0.17496]
[1769460138468,0.03,87877.0,87864.0,0.28656278]
[1769460138751,0.03,87875.0,87864.0,0.17496]
[1769460138948,0.02377257,87880.0,87864.0,0.17496]
[1769460138949,0.03,87873.0,87864.0,0.17496]
[1769460139244,0.02377257,87880.0,87865.0,0.55329986]
[1769460139481,0.1134269,87879.0,87865.0,0.55329986]
[1769460139686,0.1134269,87878.0,87865.0,0.55329986]
[1769460139976,0.1134269,87877.0,87865.0,0.55329986]
[1769460140203,0.03,87875.0,87865.0,0.55329986]
[1769460141228,0.03,87873.0,87865.0,0.55329986]
[1769460142229,0.03,87872.0,87865.0,0.55329986]
[1769460143169,0.03,87879.0,87865.0,0.55329986]
[1769460143369,0.03,87877.0,87865.0,0.55329986]
[1769460143576,0.03,87875.0,87865.0,0.55329986]
[1769460143749,0.03,87873.0,87865.0,0.55329986]
[1769460144988,0.03,87872.0,87865.0,0.55329986]
[1769460146128,0.03,87871.0,87865.0,0.55329986]
[1769460146862,0.03,87870.0,87865.0,0.55329986]
[1769460147065,0.03,87870.0,87865.0,0.57683011]
[1769460147801,0.03,87870.0,87864.0,0.17496]
[1769460147802,0.02377257,87880.0,87866.0,0.02353025]
[1769460148012,0.54010748,87881.0,87866.0,0.02353025]
[1769460149029,0.03,87880.0,87866.0,0.02353025]
[1769460150713,0.03,87878.0,87866.0,0.02353025]
[1769460152113,0.04137941,87878.0,87866.0,0.02353025]
[1769460152316,0.03,87878.0,87866.0,0.02353025]
[1769460152716,0.03,87875.0,87866.0,0.02353025]
[1769460153679,0.03,87874.0,87866.0,0.02353025]
[1769460154653,0.03,87873.0,87866.0,0.02353025]
[1769460155825,0.03,87872.0,87866.0,0.02353025]
[1769460156807,0.03,87871.0,87866.0,0.02353025]
[1769460157919,0.03,87876.0,87866.0,0.02353025]
[1769460160235,0.03,87874.0,87866.0,0.02353025]
[1769460160441,0.03,87872.0,87866.0,0.02353025]
[1769460161512,0.03,87871.0,87866.0,0.02353025]
[1769460162525,0.03,87870.0,87866.0,0.02353025]
[1769460163488,0.03,87869.0,87866.0,0.02353025]
[1769460164518,0.03,87868.0,87866.0,0.02353025]
[1769460165508,0.04137967,87876.0,87866.0,0.02353025]
[1769460165835,0.03,87874.0,87866.0,0.02353025]
[1769460165977,0.03,87872.0,87866.0,0.02353025]
[1769460166997,0.03,87871.0,87866.0,0.02353025]
[1769460167206,0.01137876,87883.0,87871.0,0.01]
[1769460167412,0.12485283,87882.0,87871.0,0.01]
[1769460167610,0.11347394,87881.0,87868.0,0.02353025]
[1769460167806,0.11347394,87880.0,87868.0,0.02353025]
[1769460168062,0.11347394,87879.0,87868.0,0.02353025]
[1769460168195,0.14347394,87878.0,87868.0,0.02353025]
[1769460168392,0.03,87876.0,87868.0,0.02353025]
[1769460168947,0.03,87874.0,87868.0,0.02353025]
[1769460170128,0.03,87873.0,87868.0,0.02353025]
[1769460171262,0.03,87872.0,87868.0,0.02353025]
[1769460171707,0.0001463,87914.0,87868.0,0.07378614]
[1769460171913,0.0001463,87914.0,87883.0,0.02574879]
[1769460171914,0.0001463,87897.0,87883.0,0.02574879]
[1769460172120,0.00025776,87897.0,87885.0,0.02574879]
[1769460172325,0.03,87892.0,87877.0,0.56466698]
[1769460172474,0.06826487,87893.0,87878.0,0.02574879]
[1769460172475,0.03,87890.0,87878.0,0.02574879]
[1769460173451,0.03,87888.0,87878.0,0.02574879]
[1769460174097,0.03,87885.0,87878.0,0.02574879]
[1769460175252,0.03,87884.0,87878.0,0.02574879]
[1769460176391,0.55212543,87893.0,87878.0,0.02574879]
[1769460176392,0.03,87883.0,87878.0,0.02574879]
[1769460177157,0.03,87882.0,87878.0,0.02574879]
[1769460178295,0.03,87881.0,87878.0,0.02574879]
[1769460179271,0.08688902,87891.0,87878.0,0.02574879]
[1769460179566,0.03,87889.0,87878.0,0.02574879]
[1769460180206,0.55212543,87872.0,87849.0,0.0001463]
[1769460180421,0.55716376,87888.0,87858.0,0.02799785]
[1769460180422,0.58212543,87871.0,87858.0,0.02799785]
[1769460180883,0.03,87869.0,87858.0,0.02799785]
[1769460181320,0.03,87863.0,87852.0,0.02473762]
[1769460181932,0.03,87861.0,87849.0,0.0001463]
[1769460182236,0.03,87861.0,87852.0,0.00046624]
[1769460182968,0.04138161,87861.0,87852.0,0.00046624]
[1769460183438,0.03,87861.0,87852.0,0.00046624]
[1769460183658,0.03,87859.0,87852.0,0.00046624]
[1769460184581,0.03,87857.0,87852.0,0.00046624]
[1769460184932,0.04138213,87857.0,87852.0,0.00046624]
[1769460185132,0.03,87857.0,87852.0,0.00046624]
[1769460185539,0.03,87856.0,87852.0,0.00046624]
[1769460186732,0.03,87855.0,87852.0,0.00046624]
[1769460187346,0.06828632,87866.0,87855.0,0.01]
[1769460187546,0.55212543,87867.0,87855.0,0.01]
[1769460187746,0.03,87866.0,87855.0,0.01]
[1769460188304,0.04138096,87866.0,87855.0,0.01]
[1769460188825,0.58212543,87866.0,87855.0,0.01]
[1769460189380,0.04138096,87866.0,87855.0,0.03473762]
[1769460189811,0.03,87865.0,87855.0,0.03473762]
[1769460190417,0.04138109,87865.0,87855.0,0.03473762]
[1769460190716,0.03,87865.0,87855.0,0.03473762]
[1769460191461,0.01138057,87869.0,87855.0,0.03473762]
[1769460191462,0.33924272,87872.0,87855.0,0.03473762]
[1769460191664,0.0001463,87888.0,87864.0,0.56466698]
[1769460191665,0.55227173,87888.0,87864.0,0.56466698]
[1769460191865,0.55227173,87888.0,87869.0,0.38240211]
[1769460192078,0.55227173,87888.0,87869.0,0.40713973]
[1769460192280,0.56364984,87888.0,87869.0,0.40713973]
[1769460192428,0.0413785,87885.0,87869.0,0.40713973]
[1769460192625,0.03,87883.0,87869.0,0.40713973]
[1769460193394,0.04137902,87881.0,87869.0,0.02473762]
[1769460193607,0.04152558,87879.0,87869.0,0.02473762]
[1769460193804,0.03,87874.0,87862.0,0.02473762]
[1769460194237,0.03,87874.0,87862.0,0.56466698]
[1769460194446,0.03,87874.0,87863.0,0.02473762]
[1769460194574,0.03,87874.0,87864.0,0.38240211]
[1769460194798,0.0001463,87879.0,87868.0,0.02473762]
[1769460195022,0.0001463,87879.0,87870.0,0.02473762]
[1769460195889,0.03,87873.0,87860.0,0.38240211]
[1769460196180,0.03,87873.0,87857.0,0.02473762]
[1769460196903,0.03,87872.0,87857.0,0.02473762]
[1769460197839,0.03,87872.0,87858.0,0.02473762]
[1769460198026,0.03,87875.0,87858.0,0.02473762]
[1769460199034,0.03,87875.0,87858.0,0.19973762]
[1769460199619,0.03,87875.0,87858.0,0.175]
[1769460199815,0.03,87875.0,87859.0,0.02457801]
[1769460200022,0.03,87873.0,87860.0,0.38240211]
[1769460201040,0.03,87872.0,87860.0,0.38240211]
[1769460201902,0.03,87874.0,87860.0,0.38240211]
[1769460204403,0.03,87874.0,87860.0,0.40698012]
[1769460204614,0.03,87872.0,87860.0,0.40698012]
[1769460205608,0.03,87871.0,87860.0,0.40698012]
[1769460206807,0.03,87870.0,87860.0,0.40698012]
[1769460207553,0.03,87870.0,87860.0,0.02457801]
[1769460207751,0.03,87869.0,87860.0,0.02457801]
[1769460208848,0.03,87868.0,87860.0,0.02457801]
[1769460209846,0.54407597,87875.0,87860.0,0.02457801]
[1769460209847,0.05690123,87872.0,87860.0,0.02457801]
[1769460210009,0.03,87870.0,87860.0,0.02457801]
[1769460210570,0.41240211,87870.0,87860.0,0.02457801]
[1769460210778,0.41240211,87870.0,87856.0,0.175]
[1769460210779,0.03,87863.0,87856.0,0.175]
[1769460211136,0.03,87863.0,87853.0,0.02457801]
[1769460211706,0.03,87862.0,87853.0,0.02457801]
[1769460212735,0.03,87861.0,87853.0,0.02457801]
[1769460212957,0.03,87861.0,87852.0,0.00046624]
[1769460212958,0.03,87861.0,87855.0,0.02457801]
[1769460213738,0.03,87870.0,87855.0,0.02457801]
[1769460213933,0.03,87868.0,87855.0,0.02457801]
[1769460215004,0.03,87867.0,87855.0,0.02457801]
[1769460215209,0.03,87867.0,87857.0,0.02457801]
[1769460215973,0.03,87866.0,87858.0,0.55579682]
[1769460216198,0.03,87866.0,87859.0,0.02457801]
[1769460217000,0.03,87873.0,87859.0,0.02457801]
[1769460217191,0.03,87871.0,87859.0,0.02457801]
[1769460218030,0.03,87865.0,87852.0,0.00046624]
[1769460218224,0.03,87865.0,87854.0,0.02457801]
[1769460219044,0.03,87868.0,87854.0,0.02457801]
[1769460219211,0.03,87868.0,87855.0,0.55579682]
[1769460219422,0.03,87868.0,87857.0,0.02457801]
[1769460220149,0.03,87867.0,87857.0,0.02457801]
[1769460220999,0.03,87866.0,87857.0,0.02457801]
[1769460222260,0.03,87865.0,87857.0,0.02457801]
[1769460223076,0.03,87873.0,87857.0,0.02457801]
[1769460223265,0.03,87871.0,87857.0,0.02457801]
[1769460223467,0.03,87869.0,87857.0,0.02457801]
[1769460223839,0.03,87867.0,87857.0,0.02457801]
[1769460224575,0.03,87866.0,87857.0,0.02457801]
[1769460225778,0.03,87865.0,87857.0,0.02457801]
[1769460226822,0.03,87873.0,87857.0,0.02457801]
[1769460227022,0.03,87871.0,87864.0,0.000224]
[1769460227225,0.03,87869.0,87864.0,0.000224]
[1769460227460,0.53269617,87874.0,87864.0,0.000224]
[1769460227461,0.03,87867.0,87864.0,0.000224]
[1769460228099,0.56269617,87862.0,87852.0,0.00046624]
[1769460228250,0.58524941,87862.0,87857.0,0.04556]
[1769460228456,0.58524941,87862.0,87852.0,0.00046624]
[1769460228656,0.03,87858.0,87852.0,0.00046624]
[1769460228859,0.58442737,87858.0,87852.0,0.00046624]
[1769460229449,0.03,87858.0,87852.0,0.00046624]
[1769460230015,0.55442737,87864.0,87852.0,0.00046624]
[1769460230016,0.03,87857.0,87852.0,0.00046624]
[1769460230823,0.03,87856.0,87852.0,0.00046624]
[1769460231789,0.03,87855.0,87852.0,0.00046624]
[1769460232621,0.55442737,87864.0,87852.0,0.00046624]
[1769460232814,0.39378255,87870.0,87842.0,0.02421758]
[1769460232815,0.03,87861.0,87842.0,0.02421758]
[1769460233018,0.03046627,87861.0,87845.0,0.59869412]
[1769460233736,0.03046627,87861.0,87846.0,0.02421758]
[1769460233940,0.03046627,87861.0,87847.0,0.57447654]
[1769460233941,0.03,87860.0,87847.0,0.57447654]
[1769460234929,0.03,87859.0,87847.0,0.57447654]
[1769460235987,0.03,87858.0,87847.0,0.59869412]
[1769460236372,0.03,87858.0,87848.0,0.38240211]
[1769460236585,0.60851946,87858.0,87841.0,0.175]
[1769460236832,0.03,87856.0,87841.0,0.74947654]
[1769460237039,0.03,87856.0,87842.0,0.57447654]
[1769460237241,0.03,87856.0,87842.0,0.59869412]
[1769460237865,0.03,87857.0,87842.0,0.59869412]
[1769460238698,0.03,87857.0,87840.0,0.38254841]
[1769460238699,0.03,87855.0,87840.0,0.38254841]
[1769460239351,0.03,87855.0,87840.0,0.95702495]
[1769460243048,0.03,87853.0,87840.0,0.95702495]
[1769460244038,0.55442737,87856.0,87840.0,0.95702495]
[1769460244039,0.03,87852.0,87840.0,0.95702495]
[1769460244240,0.41472894,87856.0,87840.0,0.38254841]
[1769460244488,0.09238649,87855.0,87840.0,0.38254841]
[1769460244689,0.03547448,87855.0,87840.0,0.38254841]
[1769460245224,0.03,87854.0,87840.0,0.38254841]
[1769460246806,0.03,87854.0,87841.0,0.57447654]
[1769460248759,0.03,87854.0,87840.0,0.38255127]
[1769460248760,0.00046627,87861.0,87847.0,0.02421758]
[1769460248960,0.00046627,87861.0,87855.0,0.57447654]
[1769460250059,0.00046627,87861.0,87842.0,0.02524458]
[1769460250060,0.00046627,87861.0,87844.0,0.02421758]
[1769460250261,0.0869091,87860.0,87844.0,0.59869412]
[1769460250462,0.03,87860.0,87844.0,0.59869412]
[1769460251248,0.03,87859.0,87844.0,0.59869412]
[1769460251647,0.03,87857.0,87844.0,0.59869412]
[1769460252664,0.03,87856.0,87844.0,0.59869412]
[1769460253593,0.03,87855.0,87844.0,0.59869412]
[1769460254844,0.03,87854.0,87844.0,0.59869412]
[1769460255731,0.03046627,87861.0,87844.0,0.59869412]
[1769460255935,0.03,87853.0,87844.0,0.59869412]
[1769460257012,0.03,87852.0,87844.0,0.59869412]
[1769460258006,0.03,87863.0,87845.0,0.02421758]
[1769460258205,0.04145561,87863.0,87845.0,0.02421758]
[1769460258420,0.03007426,87863.0,87845.0,0.02421758]
[1769460258619,0.03,87859.0,87845.0,0.59727848]
[1769460258777,0.03,87859.0,87847.0,0.5730609]
[1769460258995,0.03,87859.0,87848.0,0.02318874]
[1769460259395,0.03,87859.0,87849.0,0.38240497]
[1769460259599,0.03,87858.0,87849.0,0.38240497]
[1769460260616,0.03,87857.0,87849.0,0.38240497]
[1769460261680,0.03007426,87863.0,87849.0,0.38240497]
[1769460262086,0.03007426,87863.0,87849.0,0.4058193]
[1769460262295,0.04145561,87863.0,87849.0,0.4058193]
[1769460262491,0.03007426,87863.0,87849.0,0.4058193]
[1769460262701,0.03,87862.0,87850.0,0.02341433]
[1769460263978,0.03,87861.0,87850.0,0.02341433]
[1769460264752,0.03,87861.0,87850.0,0.57535831]
[1769460264951,0.01798928,87868.0,87851.0,0.02341433]
[1769460265128,0.22773253,87879.0,87852.0,0.02500022]
[1769460265129,0.11334614,87867.0,87852.0,0.02500022]
[1769460265386,0.07968245,87876.0,87853.0,0.02500022]
[1769460265387,0.11334614,87866.0,87853.0,0.02500022]
[1769460265693,0.06828313,87870.0,87853.0,0.02500022]
[1769460265694,0.0113807,87868.0,87853.0,0.02500022]
[1769460265844,0.113342,87867.0,87853.0,0.02500022]
[1769460266054,0.03,87865.0,87853.0,0.02500022]
[1769460266944,0.03,87866.0,87853.0,0.02500022]
[1769460267349,0.03,87864.0,87853.0,0.02500022]
[1769460268381,0.03,87863.0,87853.0,0.02500022]
[1769460269539,0.03,87866.0,87853.0,0.02500022]
[1769460269773,0.03,87864.0,87853.0,0.02500022]
[1769460270758,0.03,87866.0,87853.0,0.02500022]
[1769460271001,0.03,87864.0,87853.0,0.02500022]
[1769460272043,0.03,87863.0,87853.0,0.02500022]
[1769460273082,0.03,87862.0,87853.0,0.02500022]
[1769460273294,0.05690007,87874.0,87854.0,0.09833761]
[1769460273478,0.06828138,87872.0,87860.0,0.38240497]
[1769460273633,0.11334697,87871.0,87860.0,0.38240497]
[1769460273834,0.11334697,87870.0,87860.0,0.38240497]
[1769460274033,0.11334697,87870.0,87858.0,0.02341433]
[1769460274034,0.0413807,87868.0,87858.0,0.02341433]
[1769460274261,0.03,87866.0,87858.0,0.02341433]
[1769460275265,0.03,87865.0,87858.0,0.02341433]
[1769460276282,0.03,87864.0,87858.0,0.02341433]
[1769460277264,0.03,87863.0,87858.0,0.02341433]
[1769460278080,0.01137993,87874.0,87858.0,0.02341433]
[1769460278378,0.03,87871.0,87858.0,0.02341433]
[1769460278581,0.03,87869.0,87858.0,0.08333822]
[1769460278790,0.39378412,87880.0,87851.0,0.00046627]
[1769460278791,0.0001463,87888.0,87871.0,0.57535831]
[1769460279000,0.0001463,87888.0,87869.0,0.01]
[1769460279001,0.0001463,87888.0,87874.0,0.02341433]
[1769460279190,0.0001463,87888.0,87880.0,0.59845251]
[1769460279458,0.0001463,87888.0,87878.0,0.38240497]
[1769460279459,0.0001463,87888.0,87883.0,0.02341433]
[1769460279651,0.0001463,87888.0,87878.0,0.38240497]
[1769460279652,0.0001463,87888.0,87885.0,0.57535831]
[1769460279854,0.0001463,87888.0,87878.0,0.38240497]
[1769460279855,0.0001463,87888.0,87886.0,0.02341433]
[1769460280072,0.0001463,87888.0,87879.0,0.02341433]
[1769460280589,0.00022063,87888.0,87879.0,0.02341433]
[1769460281395,0.05436136,87898.0,87879.0,0.02341433]
[1769460281597,0.03,87895.0,87879.0,0.02348866]
[1769460281720,0.03,87895.0,87880.0,0.09813239]
[1769460282558,0.03,87894.0,87880.0,0.09813239]
[1769460283138,0.03,87894.0,87881.0,0.02341433]
[1769460283352,0.03,87894.0,87881.0,0.59889754]
[1769460283551,0.03,87897.0,87881.0,0.57548321]
[1769460283754,0.03,87897.0,87882.0,0.02341433]
[1769460284380,0.03,87897.0,87882.0,0.02353923]
[1769460286393,0.03,87897.0,87883.0,0.10795092]
[1769460286643,0.175,87904.0,87890.0,0.57535831]
[1769460286950,0.175,87904.0,87891.0,0.02341433]
[1769460287525,0.03,87902.0,87891.0,0.02341433]
[1769460290583,0.03,87902.0,87891.0,0.56729877]
[1769460290785,0.03,87902.0,87891.0,0.01769409]
[1769460291787,0.03,87902.0,87890.0,0.38240497]
[1769460292593,0.03,87902.0,87883.0,0.0001249]
[1769460292594,0.03,87891.0,87883.0,0.0001249]
[1769460293743,0.03,87890.0,87883.0,0.0001249]
[1769460294057,0.03,87890.0,87880.0,0.38240497]
[1769460294237,0.03,87890.0,87880.0,0.38220971]
[1769460294612,0.03,87889.0,87880.0,0.38220971]
[1769460295202,0.03,87889.0,87880.0,0.38188958]
[1769460295612,0.03,87894.0,87880.0,0.38188958]
[1769460296717,0.03,87894.0,87881.0,0.0972961]
[1769460298251,0.0041,90300.0,87879.0,7.433e-05]
[1769460298252,0.03,87891.0,87879.0,7.433e-05]
[1769460298773,0.03,87889.0,87879.0,7.433e-05]
[1769460299429,0.03,87889.0,87879.0,0.3824793]
[1769460299628,0.03,87888.0,87879.0,0.3824793]
[1769460299821,0.03,87888.0,87879.0,7.433e-05]
[1769460300369,0.03,87884.0,87879.0,7.433e-05]
[1769460300976,0.03,87884.0,87879.0,0.5673731]
[1769460301403,0.03,87894.0,87880.0,0.38240497]
[1769460301625,0.03,87894.0,87881.0,0.0962936]
[1769460301826,0.06825657,87904.0,87884.0,0.56729877]
[1769460302032,0.06825657,87904.0,87886.0,0.02369832]
[1769460302444,0.03,87903.0,87886.0,0.02369832]
[1769460302851,0.03,87903.0,87890.0,0.38240497]
[1769460303089,0.00870573,87920.0,87903.0,0.01]
[1769460303240,0.01137371,87922.0,87905.0,0.02369832]
[1769460303440,0.03,87920.0,87905.0,0.02369832]
[1769460303784,0.03,87918.0,87905.0,0.02369832]
[1769460304543,0.03,87918.0,87891.0,0.09734021]
[1769460304544,0.03,87909.0,87891.0,0.09734021]
[1769460304758,0.03,87895.0,87884.0,0.02369832]
[1769460305388,0.03,87895.0,87884.0,0.08315763]
[1769460305587,0.05688158,87902.0,87884.0,0.05945931]
[1769460305763,0.001,87909.0,87885.0,0.02499999]
[1769460305764,0.03,87900.0,87885.0,0.02499999]
[1769460305945,0.03,87900.0,87886.0,0.59229876]
[1769460306813,0.03,87901.0,87886.0,0.59229876]
[1769460307470,0.03,87901.0,87886.0,0.67074466]
[1769460307627,0.03,87901.0,87887.0,0.02499999]
[1769460307830,0.03,87900.0,87887.0,0.02499999]
[1769460308639,0.03,87900.0,87887.0,0.02290201]
[1769460308862,0.03,87900.0,87887.0,0.02257385]
[1769460309042,0.03,87899.0,87887.0,0.02257385]
[1769460310172,0.03,87898.0,87887.0,0.02257385]
[1769460311180,0.03,87897.0,87888.0,0.45731905]
[1769460311378,0.03,87897.0,87889.0,0.02378692]
[1769460312144,0.03,87901.0,87889.0,0.02346673]
[1769460312582,0.03,87897.0,87889.0,0.02346673]
[1769460312836,0.03,87895.0,87889.0,0.02346673]
[1769460313866,0.03,87894.0,87889.0,0.02346673]
[1769460314839,0.03,87893.0,87889.0,0.02346673]
[1769460315808,0.03,87901.0,87889.0,0.02346673]
[1769460316358,0.04137643,87901.0,87889.0,0.02346673]
[1769460316558,0.03,87899.0,87889.0,0.02346673]
[1769460316985,0.04137669,87899.0,87889.0,0.02346673]
[1769460317189,0.03,87899.0,87889.0,0.02346673]
[1769460317402,0.04137669,87899.0,87889.0,0.02346673]
[1769460317995,0.03,87897.0,87889.0,0.02346673]
[1769460319156,0.06825869,87901.0,87889.0,0.02346673]
[1769460319157,0.03,87899.0,87889.0,0.02346673]
[1769460320183,0.03,87898.0,87889.0,0.02346673]
[1769460321263,0.03,87897.0,87889.0,0.02346673]
[1769460322329,0.01137643,87901.0,87889.0,0.02346673]
[1769460322330,0.03,87896.0,87889.0,0.02346673]
[1769460323096,0.01137539,87909.0,87889.0,0.02346673]
[1769460323294,0.03,87906.0,87896.0,0.01]
[1769460323496,0.03,87904.0,87891.0,0.02362683]
[1769460323697,0.03,87902.0,87891.0,0.02362683]
[1769460324029,0.01137578,87906.0,87891.0,0.02362683]
[1769460324030,0.03,87900.0,87891.0,0.02362683]
[1769460324975,0.03,87899.0,87891.0,0.02362683]